Cogmind - Beta 16.1 @@@ ROGUE MODE // 2026.04.12 @ 10:39:09 Player: SovietPaperclip Result: Self-destructed Performance ------------- Evolutions (5) 2500 Regions Visited (5) 1000 Robots Destroyed (21) 105 Value Destroyed (566) 566 Prototype IDs (19) 380 Alien Tech Used (0) 0 Bonus (885) 885 TOTAL SCORE: 5436 Bonus ------- Follower Combat Kills 85 Registered with UFD 300 Met Optimus in HQ 500 Cogmind --------- Core Integrity 986/1000 Matter 30/300 Energy 290/290 System Corruption 4% Temperature Cool (0) Movement Rolling (130) Ox2 Location -5/Factory Parts ------- > --- POWER (2) -------- Improved Deuterium Engine > --- PROPULSION (4) --- Light Treads Advanced Treads Armored Huge Wheel > --- UTILITY (9) ------ Scrap Suit Cooling System High-capacity Storage Unit Hardened Light Armor Plating Improved Light Armor Plating Improved Thermal Shield > --- WEAPON (2) ------- Magnetic Acceleration Cannon Heavy Missile Launcher > --- INVENTORY (20) --- Light Treads Scrap Suit Matter Compressor (184) Advanced Signal Interpreter Experimental Terrain Scanner Powered Cannon Advanced Assault Cannon Plasma Cutter CPS Tube (2) Makeshift Hammer Peak State ------------ > --- POWER ------------ Improved Deuterium Engine > --- PROPULSION ------- Light Treads Advanced Treads Armored Huge Wheel > --- UTILITY ---------- Scrap Suit Cooling System High-capacity Storage Unit Experimental Terrain Scanner Advanced Terrain Scan Processor Hardened Light Armor Plating Improved Light Armor Plating Improved Thermal Shield > --- WEAPON ----------- Advanced Assault Cannon Makeshift Hammer > --- INVENTORY -------- Light Treads Scrap Suit Matter Compressor Advanced Signal Interpreter Powered Cannon Magnetic Acceleration Cannon Heavy Missile Launcher Plasma Cutter CPS Tube [Rating: 63] Favorites ----------- Power Improved Deuterium Engine Engine Improved Deuterium Engine Propulsion Light Treads Treads Light Treads Wheel Armored Huge Wheel Utility Improved Light Armor Plating Device Seismic Detector Storage High-capacity Storage Unit Processor Advanced Terrain Scan Processor Protection Improved Light Armor Plating Weapon Makeshift Hammer Ballistic Gun Shotgun Ballistic Cannon Advanced Assault Cannon Launcher Heavy Missile Launcher Impact Weapon Makeshift Hammer Build | -11 -10 -10 -7 -7 -5 ------- Run | Yrd Mat Sub Rec Scr Fac Slots Evolved 10 | . . . . . 10 Power 1 | . . . . . 1 Propulsion 2 | . . . . . 2 Utility 7 | . . . . . 7 Weapon . | . . . . . . Parts Attached 31 | 7 5 3 3 3 10 Power 2 | 1 . . 1 . . Engine 2 | 1 . . 1 . . Core . | . . . . . . Reactor . | . . . . . . Propulsion 4 | 2 . . . 1 1 Treads 3 | 2 . . . 1 . Leg . | . . . . . . Wheel 1 | . . . . . 1 Hover . | . . . . . . Flight . | . . . . . . Utility 15 | 2 3 . 2 1 7 Device 7 | 1 . . . 1 5 Storage 4 | 1 2 . 1 . . Processor 1 | . . . . . 1 Hackware . | . . . . . . Protection 3 | . 1 . 1 . 1 Artifact . | . . . . . . Weapon 10 | 2 2 3 . 1 2 Energy Gun . | . . . . . . Energy Cannon . | . . . . . . Ballistic Gun 6 | 2 2 2 . . . Ballistic Cannon 2 | . . . . 1 1 Launcher 1 | . . . . . 1 Special Weapon . | . . . . . . Impact Weapon 1 | . . 1 . . . Slashing Weapon . | . . . . . . Piercing Weapon . | . . . . . . Special Melee Weapon . | . . . . . . Unidentified Prototypes . | . . . . . . Parts Lost 1 | . . . . . 1 Power . | . . . . . . Propulsion . | . . . . . . Utility 1 | . . . . . 1 Weapon . | . . . . . . Highest Loss Streak 1 | . . . . . 1 To Critical Strikes . | . . . . . . Average Backups 13 | 1 9 13 13 15 10 Power . | . 1 1 1 . . Propulsion . | . . . . 1 1 Utility 6 | . 4 7 6 6 4 Weapon 5 | . 3 4 6 5 3 Tool/Special . | . . . . . . Unused Backups 17 | . 1 3 . 7 6 Power 2 | . . 1 . 1 . Propulsion 1 | . . . . 1 . Utility 7 | . . 2 . 2 3 Weapon 5 | . 1 . . 3 1 Tool/Special 2 | . . . . . 2 Average Slot Usage (%) 91 | . 100 100 98 86 72 Engine 13 | . 14 14 14 14 5 Treads 26 | . 28 28 28 28 11 Device 3 | . 13 . . . 16 Storage 13 | . 14 14 14 14 5 Protection 11 | . . 14 14 13 8 Ballistic Gun 11 | . 28 25 25 . . Ballistic Cannon 1 | . . . . 1 5 Impact Weapon 8 | . . 2 1 14 4 Peak Build Rating 63 | 7 10 15 19 28 63 Average Rating 19 | 5 9 12 16 20 55 On Entrance 12 | . 7 10 14 18 28 Avg Prop Armor Cover (%) 9 | . . . . . 9 Naked Turns . | . . . . . . Heaviest Build 81 | 15 34 36 59 62 81 Greatest Support 42 | 40 40 40 40 42 42 Greatest Overweight (x) 2 | 2 . . 1 1 2 Average Overweight (x) . | . . . . 1 1 Largest Inventory Capacity 20 | 8 15 15 20 20 20 Average Capacity 17 | 7 13 15 18 20 20 Most Carried 20 | 3 14 15 16 20 18 Average Carried 15 | 1 9 14 15 18 12 Final Capacity 20 | 8 15 15 20 20 20 Final Carried 19 | 3 14 15 16 19 12 Scrap Suit Usage (%) 1 | . . . . . 1 Class Distribution -------------------- 61% | Commander-Mutant 38% | Mutant Dominant Class ---------------- Mutant | -10/Materials Mutant | -10/Subcaves Commander-Mutant | -7/Recycling Commander-Mutant | -7/Scraptown Mutant | -5/Factory Resources | -11 -10 -10 -7 -7 -5 ----------- Run | Yrd Mat Sub Rec Scr Fac Matter Collected 1067 | 237 321 184 . 240 85 Remotely . | . . . . . . Salvage Created 639 | 95 365 55 . . 124 Parts 43 | 9 24 4 . . 6 Haulers Intercepted 1 | . 1 . . . . Recyclers Shooed 1 | . 1 . . . . Parts Field Recycled . | . . . . . . Retrieved Matter . | . . . . . . Parts Self-Destructed 6 | . . 6 . . . Prevented . | . . . . . . Parts Restored . | . . . . . . Kills | -11 -10 -10 -7 -7 -5 ------- Run | Yrd Mat Sub Rec Scr Fac Combat Hostiles Destroyed 13 | . 8 2 . . 3 Guns 10 | . 8 2 . . . Cannons 2 | . . . . . 2 AOE 1 | . . . . . 1 Classes Destroyed 10 | 2 4 2 . . 2 Builder 1 | . . . . . 1 Tunneler 1 | 1 . . . . . Hauler 1 | . 1 . . . . Recycler 1 | 1 . . . . . Operator 1 | . 1 . . . . Watcher 2 | . 2 . . . . Swarmer 2 | . . 1 . . 1 Grunt 10 | . 8 . . . 2 Protector 1 | . . . . . 1 Subdweller 1 | . . 1 . . . Best Kill Streak 3 | 2 2 1 . . 3 Combat Bots Only 2 | . 2 1 . . 2 Max Kills in Single Turn 3 | 1 1 1 . . 3 Gunslinging . | . . . . . . Exploded 1 | . . . . . 1 Melee . | . . . . . . Uniques/NPCs Destroyed . | . . . . . . Combat | -11 -10 -10 -7 -7 -5 -------- Run | Yrd Mat Sub Rec Scr Fac Hostile Shots Fired 114 | . 27 14 18 . 55 Missed 36 | . 7 4 7 . 18 Hits 78 | . 20 10 11 . 37 Melee 4 | . . . . . 4 Projectile 74 | . 20 10 11 . 33 Critical Strikes 6 | . 1 . . . 5 Damage Taken 1022 | . 262 120 62 . 578 Core 101 | . 41 29 17 . 14 Absorbed by Shields 207 | . . . 20 . 187 Ignored by Resistances 110 | . . . . . 110 Core Remaining (%) 82 | 100 . . . 65 . Volleys Fired 71 | 3 37 6 2 . 23 Largest 2 | 2 2 2 2 . 2 Hottest 84 | 40 46 46 46 . 84 Shots Fired 129 | 6 74 13 4 . 32 Gun 97 | 6 74 13 4 . . Cannon 31 | . . . . . 31 Launcher 1 | . . . . . 1 Special . | . . . . . . Kinetic 128 | 6 74 13 4 . 31 Thermal . | . . . . . . Explosive 1 | . . . . . 1 Electromagnetic . | . . . . . . Robot Hit Streak 18 | 4 10 14 18 . 6 Robot Miss Streak 5 | . 5 1 1 . 3 Penetration Max . | . . . . . . Secondary Targets 2 | . 1 1 . . . Max Gunslinging Chain 1 | . 1 1 . . . Shots Hit Robots 88 | 4 49 8 4 . 23 Core Hits 46 | 3 27 4 4 . 8 Critical Kills . | . . . . . . Critical Parts Destroyed . | . . . . . . Critical Strikes 1 | . . . . . 1 Blast 1 | . . . . . 1 Melee Attacks 3 | . . 2 . . 1 Impact 3 | . . 2 . . 1 Slashing . | . . . . . . Piercing . | . . . . . . Sneak Attacks . | . . . . . . Combat Hostiles . | . . . . . . Follow-up Attacks . | . . . . . . Damage Inflicted 2024 | 52 765 154 62 . 991 Guns 1033 | 52 765 154 62 . . Cannons 641 | . . . . . 641 Explosions 350 | . . . . . 350 Melee . | . . . . . . Ramming . | . . . . . . Kinetic 1674 | 52 765 154 62 . 641 Thermal . | . . . . . . Explosive 350 | . . . . . 350 Electromagnetic . | . . . . . . Impact . | . . . . . . Slashing . | . . . . . . Piercing . | . . . . . . Highest Corruption 4 | . 1 1 1 . 4 Average Corruption 1 | . 1 1 1 . 2 Corruption Purged . | . . . . . . Corruption Blocked . | . . . . . . Effects 13 | . 2 7 4 . . Message Errors 5 | . . 2 3 . . Matter Fused 2 | . . 2 . . . Heat Flow Errors 3 | . 1 1 1 . . Energy Discharges 1 | . 1 . . . . Parts Fused 1 | . . 1 . . . Misfires 1 | . . 1 . . . Overload Shots . | . . . . . . Overflow Damage 36 | . . . . . 36 Projectiles 30 | . . . . . 30 Explosions 6 | . . . . . 6 Melee . | . . . . . . Knockbacks 4 | . . . . . 4 Impact . | . . . . . . Kinetic 4 | . . . . . 4 Secondary . | . . . . . . Self-Inflicted Damage 49 | . . . . . 49 Shots 1 | . . . . . 1 Rammed . | . . . . . . Targets Rammed . | . . . . . . Kicked . | . . . . . . Crushed . | . . . . . . Highest Temperature 191 | . 164 171 191 . . Average Temperature 55 | . 33 103 78 . . Received Heat Transfer 328 | . 171 21 18 . 118 Siege Activations . | . . . . . . Martial Activations . | . . . . . . Shielding Activations . | . . . . . . Robots Disrupted . | . . . . . . Combat Hostiles . | . . . . . . Robots Corrupted . | . . . . . . Combat Hostiles . | . . . . . . Parts Fried 2 | . . . . . 2 Impact Corruptions . | . . . . . . Robots Melted . | . . . . . . Combat Hostiles . | . . . . . . Parts Melted . | . . . . . . Heat Transferred . | . . . . . . Parts Sabotaged . | . . . . . . Parts Stolen . | . . . . . . Parts Stripped . | . . . . . . Power Chain Reactions . | . . . . . . Alert | -11 -10 -10 -7 -7 -5 ------- Run | Yrd Mat Sub Rec Scr Fac Maximum Alert Level . | . . . . . . Low Security (%) 100 | 100 100 . 100 . 100 Level 1 . | . . . . . . Level 2 . | . . . . . . Level 3 . | . . . . . . Level 4 . | . . . . . . Level 5 . | . . . . . . High Security . | . . . . . . Max Security . | . . . . . . Peak Influence 105 | 5 80 . 27 . 105 Initial . | . . . . . . Average 6 | . 11 . . . 5 Influence Increases 519 | 10 233 80 31 . 165 Destroy 0b10 Robot/C 280 | . 160 20 20 . 80 Destroy 0b10 Robot/NC 35 | 10 20 . . . 5 Destroy Leader 56 | . 46 . . . 10 Allied During Kill 13 | . . . 7 . 6 Successful Hack 11 | . 7 . 4 . . Disable Machine 15 | . . . . . 15 Destroy Structure 34 | . . . . . 34 Lose Combat Pursuer 75 | . . 60 . . 15 Influence Decreases 440 | 10 233 80 31 . 86 Time Decay 382 | 10 233 80 31 . 28 Lost Part 10 | . . . . . 10 Lost Ally 48 | . . . . . 48 Squads Dispatched 1 | . 1 . . . . Investigation . | . . . . . . Extermination . | . . . . . . Reinforcement 1 | . 1 . . . . Assault . | . . . . . . Garrison . | . . . . . . Intercept . | . . . . . . Searches Triggered . | . . . . . . Construction Impeded . | . . . . . . Haulers Reinforced . | . . . . . . Active Scanning Responses . | . . . . . . Cargo Convoy Interrupts . | . . . . . . Stealth | -11 -10 -10 -7 -7 -5 --------- Run | Yrd Mat Sub Rec Scr Fac Distress Signals 1 | . . . . . 1 Communications Jammed . | . . . . . . Distress Signals . | . . . . . . Times Spotted 43 | . 21 7 4 . 11 Peak Tracking Total 5 | . 2 5 3 . 5 Tactical Retreats 2 | . . 1 . . 1 Traps | -11 -10 -10 -7 -7 -5 ------- Run | Yrd Mat Sub Rec Scr Fac Traps Triggered 3 | . 1 1 . . 1 Indirectly . | . . . . . . Trap Hack Attempts . | . . . . . . Triggered . | . . . . . . Disarmed . | . . . . . . Reprogrammed . | . . . . . . Reused . | . . . . . . Traps Extracted . | . . . . . . Installed . | . . . . . . Triggered . | . . . . . . Machines | -11 -10 -10 -7 -7 -5 ---------- Run | Yrd Mat Sub Rec Scr Fac Machines Disabled 2 | . . 1 . . 1 Max in Single Turn 1 | . . 1 . . 1 Machines Repaired . | . . . . . . Machines Dismantled . | . . . . . . Machines Sabotaged . | . . . . . . Overloaded Fab Kills . | . . . . . . Hacking | -11 -10 -10 -7 -7 -5 --------- Run | Yrd Mat Sub Rec Scr Fac Machines Accessed 13 | . 6 2 1 3 1 Terminals 7 | . 6 . 1 . . Fabricators 1 | . . . . . 1 Repair Stations . | . . . . . . Recycling Units . | . . . . . . Scanalyzers . | . . . . . . Garrison Access . | . . . . . . Total Hacks 44 | . 12 5 1 25 1 Successful 36 | . 4 5 1 25 1 Failed 8 | . 8 . . . . Catastrophic 2 | . 2 . . . . Database Lockouts . | . . . . . . Manual 2 | . 2 . . . . Terminals 13 | . 12 . 1 . . Fabricators 1 | . . . . . 1 Repair Stations . | . . . . . . Recycling Units . | . . . . . . Scanalyzers . | . . . . . . Garrison Access . | . . . . . . Terminal Hacks 35 | . 4 5 1 25 . Record 30 | . . 4 1 25 . Alert Level 1 | . 1 . . . . Unreport Threat 1 | . 1 . . . . Locate Traps 1 | . 1 . . . . Zone Layout 1 | . 1 . . . . Proto ID Catalog 1 | . . 1 . . . Fabricator Hacks 1 | . . . . . 1 Network Status 1 | . . . . . 1 Repair Station Hacks . | . . . . . . Recycling Unit Hacks . | . . . . . . Scanalyzer . | . . . . . . Garrison Access Hacks . | . . . . . . Unauthorized Hacks . | . . . . . . Terminals . | . . . . . . Fabricators . | . . . . . . Repair Stations . | . . . . . . Recycling Units . | . . . . . . Scanalyzers . | . . . . . . Garrison Access . | . . . . . . Data Cores Recovered . | . . . . . . Used . | . . . . . . Hacking Detections 4 | . 4 . . . . Full Trace Events . | . . . . . . Feedback Events . | . . . . . . Feedback Blocked . | . . . . . . Robot Schematics Acquired . | . . . . . . Robots Built . | . . . . . . Authchips . | . . . . . . Time . | . . . . . . Total Robot Build Rating . | . . . . . . Part Schematics Acquired . | . . . . . . Parts Built . | . . . . . . Authchips . | . . . . . . Time . | . . . . . . Total Part Build Rating . | . . . . . . Part Studies Acquired . | . . . . . . Parts Repaired . | . . . . . . Time . | . . . . . . Parts Recycled . | . . . . . . Recycled Matter . | . . . . . . Retrieved Matter . | . . . . . . Retrieved Components . | . . . . . . Parts Scanalyzed . | . . . . . . Part Schematics Acquired . | . . . . . . Parts Damaged . | . . . . . . Bothacking | -11 -10 -10 -7 -7 -5 ------------ Run | Yrd Mat Sub Rec Scr Fac Used RIF Installer . | . . . . . . Robots Hacked . | . . . . . . Non-combat . | . . . . . . Combat . | . . . . . . Robot Hacks Applied . | . . . . . . Relay Couplers Released . | . . . . . . Fabnet Peak Effective % . | . . . . . . Robots Rewired 7 | . . . 7 . . Allies Hacked . | . . . . . . Hacks Repelled . | . . . . . . Allies | -11 -10 -10 -7 -7 -5 -------- Run | Yrd Mat Sub Rec Scr Fac Total Allies 7 | . . . 7 . . Largest Group 7 | . . . 7 7 7 Highest-Rated Group 209 | . . . 209 209 209 Highest-Rated Ally 40 | . . . 40 40 40 Initial UFD Resources 37 | . . . . . 37 Total Orders . | . . . . . . Ally Attacks 23 | . . . 3 . 20 Total Damage 555 | . . . 101 . 454 Kills 2 | . . . 1 . 1 Allies Corrupted . | . . . . . . Allies Melted . | . . . . . . Intel | -11 -10 -10 -7 -7 -5 ------- Run | Yrd Mat Sub Rec Scr Fac Active Infowar (turns) 1188 | 14 987 . . . 187 Terrain 187 | . . . . . 187 Seismic 1001 | 14 987 . . . . Robot Analysis Total . | . . . . . . Derelict Logs Recovered 5 | . . 2 . 3 . Drone Launches . | . . . . . . Drone Recoveries . | . . . . . . Exploration | -11 -10 -10 -7 -7 -5 ------------- Run | Yrd Mat Sub Rec Scr Fac Turns Passed 7004 | 83 1037 1144 696 3615 429 Spaces Moved 3073 | 42 511 652 268 1485 115 Core 9 | 9 . . . . . Treads 2986 | 33 511 652 268 1485 37 Legs . | . . . . . . Wheels 78 | . . . . . 78 Hover . | . . . . . . Flight . | . . . . . . Fastest Speed 50 | 50 160 160 160 232 130 Average Speed 202 | 145 160 160 213 239 162 Slowest Speed 240 | 160 160 160 240 240 232 Overloaded Moves . | . . . . . . Propulsion Burnouts . | . . . . . . Robots Hopped . | . . . . . . Potential Cave-ins . | . . . . . . Cave-ins Triggered . | . . . . . . Exploration Rate (%) 48 | 3 87 45 59 91 4 Regions Visited 5 Branch Regions 3 Pre-discovered Areas 2 | . . 1 . 1 . Known Exits Taken . | . . . . . . Unknown Exits Taken 5 | 1 1 1 1 1 . Scrap Searched 12 | . . 6 . 6 . Spaces Dug 1 | . . . . . 1 Terrain Destroyed 20 | . . . . . 20 Melee 1 | . . . . . 1 Projectile 5 | . . . . . 5 AOE 14 | . . . . . 14 Terrain Rammed . | . . . . . . Walls Destroyed . | . . . . . . Machines Disabled . | . . . . . . Actions | -11 -10 -10 -7 -7 -5 --------- Run | Yrd Mat Sub Rec Scr Fac Total 3712 | 54 655 738 391 1550 324 Wait 355 | . 86 59 12 30 168 Move 3068 | 41 510 651 267 1484 115 Hop . | . . . . . . Pick Up 38 | 3 12 7 1 14 1 Fast Attach 11 | 7 . . 1 2 1 Attach 10 | . . . . 1 9 Detach 4 | . . . 1 . 3 Swap 18 | . 7 5 3 1 2 Drop 29 | . 3 8 4 13 1 Fire 71 | 3 37 6 2 . 23 Melee 3 | . . 2 . . 1 Ram . | . . . . . . Kick . | . . . . . . Crush . | . . . . . . Escape Stasis . | . . . . . . Rewire 105 | . . . 100 5 . Trap . | . . . . . . Miscellaneous . | . . . . . . Route ------- -11/Scrapyard -10/Materials (discovered 5 exits: [*Mat x3] / [*Min] / *Sub) -10/Subcaves (discovered 3 exits: *Mat x2 / *Rec) -7/Recycling (discovered 2 exits: *Fac / *Scr) -7/Scraptown (discovered 2 exits: *Fac x2) -5/Factory History --------- Turn | Location | Event 11 | -11/Scrapyard | Discovered new exit (range 16) 84 | -11/Scrapyard | Entered Materials 175 | -10/Materials | Discovered new exit (range 7) 300 | -10/Materials | Build established: Mutant 465 | -10/Materials | Discovered new exit (range 11) 607 | -10/Materials | Discovered new exit (range 10) 728 | -10/Materials | Discovered new exit (range 11) 972 | -10/Materials | Discovered new exit (range 8) 1121 | -10/Materials | Entered Subcaves 1180 | -10/Subcaves | Discovered new exit (range 13) 1263 | -10/Subcaves | Discovered new exit (range 16) 1438 | -10/Subcaves | Learned 2 Materials zone layouts 1487 | -10/Subcaves | Visited 4L-MR0's lab 1511 | -10/Subcaves | Found Powered Cannon 1613 | -10/Subcaves | Visited Clippyterm 1618 | -10/Subcaves | Learned Factory garrison access intel 1625 | -10/Subcaves | A swath of the cavern ceiling suddenly collapsed 1807 | -10/Subcaves | Identified exit to Materials 1834 | -10/Subcaves | Disturbed a concealed Subdweller 1881 | -10/Subcaves | A swath of the cavern ceiling suddenly collapsed 2171 | -10/Subcaves | Learned location of Zion (-7) 2171 | -10/Subcaves | Met a Zionite searching for "candidates" 2265 | -10/Subcaves | Entered Recycling 2266 | -7/Recycling | Joined Warlord attack on 0b10 via Recycling 2639 | -7/Recycling | Build established: Commander-Mutant 2714 | -7/Recycling | Discovered new exit (range 15) 2893 | -7/Recycling | Scanned before Scraplab entrance 2931 | -7/Recycling | Entered Scraplab 2950 | -7/Recycling | Discovered new exit (range 3) 2961 | -7/Recycling | Entered Scraptown 2961 | -7/Scraptown | Accompanied by 7 allies 2961 | -7/Scraptown | System corruption cleaned by C-Scrubber 2983 | -7/Scraptown | Heard Great Nut preacher, LISTEN AND RECITE! 3452 | -7/Scraptown | Scanned Subdweller tech in exchange for log data 3457 | -7/Scraptown | Learned location of Extension (-4) 3462 | -7/Scraptown | Learned Research security intel 3591 | -7/Scraptown | Discovered new exit (range 9) 3672 | -7/Scraptown | Visited Fellowship of the Rings 3728 | -7/Scraptown | Visited Assassins FH 3785 | -7/Scraptown | Visited Bundlers 3948 | -7/Scraptown | Visited SPCMW 4082 | -7/Scraptown | Visited IN-MT5's Study 4401 | -7/Scraptown | Visited UFD Registry 4401 | -7/Scraptown | Registered with UFD as "Roughlever" 4451 | -7/Scraptown | Visited TADAMA 4514 | -7/Scraptown | Visited Symbiants 4730 | -7/Scraptown | Visited Junk Cannon Lab 4802 | -7/Scraptown | Visited Curators Association 4886 | -7/Scraptown | Visited Science Testing Area 4929 | -7/Scraptown | Visited Junk Repository 5025 | -7/Scraptown | Visited Derelict Rescue Squad 5056 | -7/Scraptown | Visited Observation Area 5181 | -7/Scraptown | Delivered Scrap Shield to a Scientist 5471 | -7/Scraptown | Visited Infowarlord's Domain 5491 | -7/Scraptown | Found Exp. Terrain Scanner 5573 | -7/Scraptown | Visited Scrapoid Research Area 5796 | -7/Scraptown | Visited LU-1G1's Boring Crew 6025 | -7/Scraptown | Found Scrap Suit 6029 | -7/Scraptown | Found Scrap Suit 6394 | -7/Scraptown | Met Optimus 6394 | -7/Scraptown | Accepted into 0bPrime 6561 | -7/Scraptown | Discovered new exit (range 3) 6576 | -7/Scraptown | Entered Factory 6576 | -5/Factory | Accompanied by 7 allies 6576 | -5/Factory | Evolved 10 slots: Power x1, Propulsion x2, Utility x7 6577 | -5/Factory | Loaded intel: 4 garrison access locations 6666 | -5/Factory | Lost 5 allies 6927 | -5/Factory | Build established: Mutant 7005 | -5/Factory | Self-destructed Last Messages --------------- 06973_ Destroyed VTOL Module. 06973_ S-27 Virus knocked back. 06977_ G-50 Soldier knocked back. 06979_ Destroyed Lgt. Nuclear Core. 06979_ S-27 Virus destroyed. 06981_ Matter Pump disabled. 06990_ Acquired 5 matter. 06991_ Critical hit (Burn: +19). 06992_ U-05 Engineer lays Concrete. 06992_ G-50 Soldier destroyed. 06992_ Com. Battery fried. 06992_ Angel 4a destroyed. 06992_ Destroyed Imp. Deuterium Engine. 06992_ U-05 Engineer destroyed. 06993_ Angel 4b destroyed. 06993_ Recycling Unit disabled. 06994_ Acquired 54 matter. 07002_ Adv. Terrain Scan Processor destroyed. 07002_ System corrupted by crushing effect (+3). 07002_ Knocked back. Map ----- +----------------------------------------------------+ | ############+##### # """ ?"" #### #??##+# | | # # ##### # """ """ #### ? | | # + ##### # ? ###? ##### # | | # # ##### # ""? ? ?### #?### # | | # # !! + + """S"" ####+##?## ? | | # """ !! ##### #?""""?" ### #### # | | # """ !! ##### # ??# ?#?? # | | + """ ##### ###?########## #### | | # ########+############?###?? #### | | + """ ## ####?##?#### #### ? | | # """ " " ## """" #### ? #? #### | | # """ ""R"" ## """" #### # #### | | # """"" ## """" ##?# ? ##?##### | | ############### """" #### ?? ? | | # # """" #### ? ###?### | | # # """" #### ####### | | # #"" """" #### ? ?# ? | | # "" "" #"F #?## ? ? #?? | | # "" "" ?#""" #### ? ? # | | # """ """ #""" #### ? + ? | | # """ """ " % #### #####?#?####? | | # """ """ " " #####+[ # # #### ###?# ? ## | | # "G" ####; |g #####? #? | | # ? """ ###### *pm ######## """ ## | | # ? ###### g " #?###### ?"" ## | | ###+################ %@ " ########?""" ## | | ############# ! "[ ######## ?# | | #########?### b% % #+##########?+?### | | ##########??##; %" " # ? + #?## | | ############### "Y" # ##### ?#### | | ? # #####; % "" # ##?## #### | | #### # ###### % # ?####? #### | | # # + ! + ###?#+## #### | | # # ########### #? ? # ?### | | # + "" #? ?#? #? # # | | ? # # """ # ??# # # ? | | ? # # ? R" # ? ### #?? # ? ?# " " | | ? ? # """ ?? #?# ?###?# ?? + T ? | | ?# # ? ? # ? ### ??#### # " " | | ?? ?? ####?######?##?##### #######???### | | ?????? ? ? ? ### / | | ??????? ?##+?######## ### # #### | | ????????? # ? #### ?###?? ??? # ###? | | ????????? + ##?# ? ? ? # ##?? | | ?????????? ???## # #??# ###? ? # #??? | | ????????????####? ############ #### ?? #????? | | ??????????????### ############ #?##? ? ?? ??????? | | ????????????????# ##### # ##?# ? ???????? | | ??????????????????##### # ##?##+##??????????? | | ?????????????????????## ?"" ? ?????????????? | +----------------------------------------------------+ Best States ------------- Heat Dissipation 62 Energy Generation 16 Energy Capacity 290 Matter Stores 300 Matter Capacity 300 Sight Range 16 Terrain Scan Range 30 Terrain Scan Density 210 Armor Coverage 300 Resistance: TH 25 Evasion (%) 40 Recoil Reduction 3 Item Schematics ----------------- None Robot Schematics ------------------ None Fabricated ------------ Nothing Repaired ---------- Nothing Studied --------- None Alien Tech Used ----------------- None Achievements -------------- Civilization 2243 Link The Feds Mistaken Identity You May Approach The Wall Challenges ------------ None Game ------ Seed FieldPotentialAutogun Manual? 0 Play Time 00:44:40 Cumulative 160.5 hours Start 2026.04.11 @ 21:41:57 End 2026.04.12 @ 10:39:09 Sessions 3 Manual Loads 0 Difficulty Rogue Special Mode None Game No. 247 Rogue 247 Adventurer 0 Explorer 0 Win Type - Total 1 Types 1/0/0/0/0/0/0/0/0/0 Lore% 57 Gallery% 51 Achievement% 31 Wizard Run 0 Options --------- Layout 1 ASCII 0 Keyboard 0 Movement Numpad Keybinds 0 Fullscreen 2 Font 32/SmallcapsGlow Map View 77x35 Zoom Use 0% Tactical HUD 1 Map Filters NONE Filters NONE Steam 1 RUN: 15850261-8dee-4cba-b41b-1ac8d9f475a6